fUSD/lending_fUSD_20240220
["ID","MTS","AMOUNT","RATE_DAILY","PERIOD"]
[314563016,1708427440043,-5371.48910989,0.0003467,2]
[314563017,1708427440077,-953.60286542,0.0003467,2]
[314563019,1708427440110,-1668.96118,0.0003467,2]
[314563020,1708427440169,-5231.2044754,0.0003467,2]
[314563021,1708427440258,-15202.75930476,0.0003467,2]
[314563022,1708427440273,-75590.71200803,0.0003467,2]
[314563023,1708427440284,-2453.5621,0.0003467,2]
[314563024,1708427440293,-210.46890147,0.0003468,7]
[314563026,1708427440306,-16584.9886,0.0003468,2]
[314563028,1708427440315,-1548.8558,0.0003468,2]
[314563030,1708427440324,-4228.8308,0.0003468,2]
[314563032,1708427440334,-513.24,0.00034741,2]
[314563034,1708427440343,-14003.9896784,0.0003477,6]
[314563036,1708427440354,-252673.2974,0.0003478,2]
[314563038,1708427440363,-8412.2923,0.0003478,2]
[314563041,1708427440373,-152.3142153,0.000348,2]
[314563043,1708427440382,-151.0212031,0.00034848,2]
[314563045,1708427440393,-181.50939022,0.0003487,2]
[314563046,1708427440402,-100000.0,0.0003488,2]
[314563049,1708427440411,-9921.2453,0.0003488,2]
[314563050,1708427440420,-3425.261,0.0003488,2]
[314563053,1708427440430,-22702.2311,0.0003488,2]
[314563055,1708427440440,-15775.0874,0.0003488,2]
[314563057,1708427440449,-952.5471,0.0003488,2]
[314563059,1708427440459,-39532.3324,0.0003488,2]
[314563061,1708427440469,-329.5202,0.0003488,2]
[314563063,1708427440478,-80681.7329,0.0003488,2]
[314563065,1708427440487,-245000.0,0.0003488,2]
[314563067,1708427440497,-166.7,0.0003488,2]
[314563069,1708427440506,-6071.25,0.000349,15]
[314563071,1708427440515,-172.1128102,0.000349,2]
[314563073,1708427440524,-1235.45686379,0.000349,2]
[314563075,1708427440533,-154.07366001,0.000349,2]
[314563077,1708427440544,-1452.03,0.000349,2]
[314563079,1708427440553,-1474.14,0.000349,2]
[314563081,1708427440563,-161.1,0.00034906,2]
[314563083,1708427440572,-210.46890146,0.00034917,7]
[314563085,1708427440581,-151.0212031,0.00034948,2]
[314563087,1708427440591,-416.63921772,0.00034979,4]
[314563089,1708427440601,-542850.02945001,0.0003498,2]
[314563091,1708427440610,-181.50939022,0.0003499,2]
[314563093,1708427440619,-100000.0,0.00035,5]
[314563095,1708427440629,-151.62155853,0.00035,4]
[314563097,1708427440638,-246.72923198,0.00035,5]
[314563099,1708427440647,-1000.0,0.00035,3]
[314563101,1708427440657,-14298.82143415,0.00035,2]
[314563103,1708427440666,-40573.81,0.00035,2]
[314563105,1708427440676,-51747.77989895,0.00035,2]
[314563107,1708427440685,-151.0212031,0.00035048,2]
[314563109,1708427440694,-151.0212031,0.00035148,2]
[314563111,1708427440703,-210.46890146,0.00035154,7]
[314563113,1708427440713,-156.17,0.0003517,2]
[314563115,1708427440721,-165.95,0.00035224,2]
[314563117,1708427440730,-161.1,0.00035235,2]
[314563119,1708427440740,-151.0212031,0.00035248,2]
[314563121,1708427440750,-2931.0,0.00035261,2]
[314563123,1708427440759,-4103.0,0.00035261,2]
[314563125,1708427440768,-8174.0,0.00035261,2]
[314563127,1708427440778,-2292.0,0.00035261,2]
[314563129,1708427440787,-7427.0,0.00035261,2]
[314563131,1708427440797,-5636.0,0.00035261,2]
[314563133,1708427440807,-19872.0,0.00035261,2]
[314563135,1708427440816,-42635.0,0.00035261,2]
[314563137,1708427440825,-1038.0,0.00035261,2]
[314563139,1708427440835,-241.964,0.00035261,2]
[314563141,1708427440844,-208.036,0.00035261,2]
[314563143,1708427440854,-153.52,0.00035294,2]
[314563145,1708427440863,-436.26,0.00035342,2]
[314563147,1708427440872,-154.22,0.00035342,2]
[314563149,1708427440881,-412.6,0.00035342,2]
[314563151,1708427440890,-971.61,0.00035342,2]
[314563153,1708427440900,-151.0212031,0.00035348,2]
[314563155,1708427440909,-210.46890146,0.00035391,7]
[314563157,1708427440919,-154.07365991,0.000354,2]
[314563159,1708427440928,-151.0212031,0.00035448,2]
[314563161,1708427440937,-16110.53,0.00035455,2]
[314563163,1708427440947,-406.0,0.00035479,2]
[314563165,1708427440957,-406.0,0.00035479,2]
[314563167,1708427440966,-917.04,0.00035479,2]
[314563169,1708427440976,-917.04,0.00035479,2]
[314563171,1708427440985,-283.85,0.00035494,2]
[314563173,1708427440995,-155.23139809,0.00035516,2]
[314563175,1708427441005,-194.09055051,0.00035516,2]
[314563177,1708427441014,-2576.68997055,0.00035516,2]
[314563179,1708427441024,-5432.02864158,0.00035516,2]
[314563181,1708427441033,-901.07358035,0.00035516,2]
[314563183,1708427441044,-1398.7546858,0.00035516,2]
[314563185,1708427441053,-1644.85292282,0.00035516,2]
[314563187,1708427441063,-1025.333155,0.00035516,2]
[314563189,1708427441072,-151.0212031,0.00035548,2]
[314563191,1708427441082,-800.0,0.00035563,2]
[314563193,1708427441091,-200.0,0.00035563,10]
[314563194,1708427441101,-200.0,0.00035563,10]
[314563197,1708427441111,-161.1,0.00035564,2]
[314563198,1708427441121,-10000.0,0.00035591,2]
[314563200,1708427441130,-5145.478,0.000356,30]
[314563203,1708427441139,-800.0,0.00035611,2]
[314563205,1708427441149,-250.0,0.00035614,2]
[314563207,1708427441159,-500.0,0.00035614,4]
[314563209,1708427441169,-750.0,0.00035614,6]
[314563210,1708427441178,-627.19593507,0.00035614,8]
[314563212,1708427441188,-9966.70203641,0.00035616,2]
[314563214,1708427441197,-362.45171289,0.00035616,2]
[314563216,1708427441206,-211.16681513,0.00035616,2]
[314563217,1708427441216,-500.0,0.00035616,2]
[314563219,1708427441226,-500.0,0.00035616,2]
[314563221,1708427441235,-614.10422837,0.00035616,2]
[314563223,1708427441245,-500.0,0.00035616,2]
[314563225,1708427441254,-507.27829159,0.00035616,2]
[314563227,1708427441263,-500.0,0.00035616,2]
[314563229,1708427441272,-500.0,0.00035616,2]
[314563231,1708427441281,-500.0,0.00035616,2]
[314563233,1708427441296,-500.0,0.00035616,2]
[314563235,1708427441306,-500.0,0.00035616,2]
[314563237,1708427441315,-500.0,0.00035616,2]
[314563239,1708427441325,-500.0,0.00035616,2]
[314563241,1708427441334,-500.0,0.00035616,2]
[314563243,1708427441343,-531.48865592,0.00035616,2]
[314563245,1708427441352,-500.0,0.00035616,2]
[314563248,1708427441362,-500.0,0.00035616,2]
[314563250,1708427441372,-500.0,0.00035616,2]
[314563251,1708427441383,-500.0,0.00035616,2]
[314563253,1708427441393,-500.0,0.00035616,2]
[314563255,1708427441402,-500.0,0.00035616,2]
[314563257,1708427441411,-500.0,0.00035616,2]
[314563259,1708427441423,-1000.0,0.00035616,7]
[314563261,1708427441437,-181.59909517,0.00035616,2]
[314563263,1708427441447,-500.0,0.00035616,2]
[314563265,1708427441456,-500.0,0.00035616,2]
[314563267,1708427441465,-533.18469467,0.00035616,2]
[314563269,1708427441474,-500.84937232,0.00035616,2]
[314563271,1708427441483,-512.6640818,0.00035616,2]
[314563273,1708427441492,-500.0,0.00035616,2]
[314563275,1708427441502,-500.0,0.00035616,2]
[314563277,1708427441511,-500.0,0.00035616,2]
[314563279,1708427441521,-500.0,0.00035616,2]
[314563281,1708427441530,-500.0,0.00035616,2]
[314563284,1708427441540,-501.87513979,0.00035616,2]
[314563286,1708427441551,-500.0,0.00035616,2]
[314563288,1708427441560,-500.0,0.00035616,2]
[314563290,1708427441570,-500.0,0.00035616,2]
[314563292,1708427441579,-500.0,0.00035616,2]
[314563294,1708427441589,-500.0,0.00035616,2]
[314563296,1708427441599,-500.0,0.00035616,2]
[314563298,1708427441608,-500.0,0.00035616,2]
[314563300,1708427441618,-500.0,0.00035616,2]
[314563302,1708427441628,-500.0,0.00035616,2]
[314563304,1708427441637,-500.0,0.00035616,2]
[314563306,1708427441647,-500.0,0.00035616,2]
[314563308,1708427441658,-500.0,0.00035616,2]
[314563310,1708427441667,-500.0,0.00035616,2]
[314563312,1708427441677,-500.0,0.00035616,2]
[314563314,1708427441686,-500.0,0.00035616,2]
[314563316,1708427441695,-500.0,0.00035616,2]
[314563318,1708427441704,-500.0,0.00035616,2]
[314563320,1708427441714,-500.0,0.00035616,2]
[314563322,1708427441723,-500.0,0.00035616,2]
[314563324,1708427441733,-500.0,0.00035616,2]
[314563325,1708427441742,-500.0,0.00035616,2]
[314563328,1708427441752,-500.0,0.00035616,2]
[314563329,1708427441763,-500.0,0.00035616,2]
[314563332,1708427441773,-500.0,0.00035616,2]
[314563334,1708427441782,-500.0,0.00035616,2]
[314563336,1708427441792,-500.0,0.00035616,2]
[314563338,1708427441803,-500.0,0.00035616,2]
[314563340,1708427441813,-500.0,0.00035616,2]
[314563341,1708427441822,-555.30154886,0.00035616,2]
[314563343,1708427441832,-500.0,0.00035616,2]
[314563345,1708427441841,-500.0,0.00035616,2]
[314563347,1708427441851,-536.5536834,0.00035616,2]
[314563349,1708427441861,-500.0,0.00035616,2]
[314563351,1708427441871,-521.08,0.00035616,2]
[314563353,1708427441880,-500.0,0.00035616,2]
[314563355,1708427441890,-553.5880957,0.00035616,2]
[314563358,1708427441899,-500.0,0.00035616,2]
[314563360,1708427441909,-500.0,0.00035616,2]
[314563362,1708427441918,-500.0,0.00035616,2]
[314563364,1708427441928,-170.5625335,0.00035616,2]
[314563366,1708427441937,-800.76,0.00035616,2]
[314563368,1708427441947,-500.0,0.00035616,2]
[314563370,1708427441956,-388.09685338,0.00035616,2]
[314563372,1708427441966,-500.0,0.00035616,2]
[314563374,1708427441975,-500.0,0.00035616,2]
[314563376,1708427441986,-500.0,0.00035616,2]
[314563378,1708427441995,-182.63897233,0.00035616,2]
[314563380,1708427442005,-500.0,0.00035616,2]
[314563382,1708427442014,-500.0,0.00035616,2]
[314563384,1708427442023,-500.0,0.00035616,2]
[314563403,1708427442033,-559.92443425,0.00035616,2]
[314563410,1708427442240,-500.0,0.00035616,2]
[314563412,1708427442249,-500.0,0.00035616,2]
[314563413,1708427442259,-500.0,0.00035616,2]
[314563415,1708427442268,-488.33132651,0.00035616,2]
[314563417,1708427442278,-500.0,0.00035616,2]
[314563420,1708427442287,-500.0,0.00035616,2]
[314563423,1708427442300,-500.0,0.00035616,2]
[314563425,1708427442310,-622.35861183,0.00035616,2]
[314563428,1708427442320,-500.0,0.00035616,2]
[314563431,1708427442329,-500.0,0.00035616,2]
[314563433,1708427442339,-500.0,0.00035616,2]
[314563435,1708427442349,-1218.39,0.00035616,2]
[314563439,1708427442358,-500.0,0.00035616,2]
[314563442,1708427442368,-500.0,0.00035616,2]
[314563443,1708427442377,-500.0,0.00035616,2]
[314563445,1708427442387,-500.0,0.00035616,2]
[314563448,1708427442397,-500.0,0.00035616,2]
[314563450,1708427442406,-500.0,0.00035616,2]
[314563452,1708427442415,-500.0,0.00035616,2]
[314563453,1708427442425,-1216.44,0.00035616,2]
[314563454,1708427442434,-500.0,0.00035616,2]
[314563456,1708427442444,-500.0,0.00035616,2]
[314563457,1708427442453,-500.0,0.00035616,2]
[314563458,1708427442462,-500.0,0.00035616,2]
[314563459,1708427442473,-500.0,0.00035616,2]
[314563460,1708427442488,-500.0,0.00035616,2]
[314563461,1708427442498,-500.0,0.00035616,2]
[314563462,1708427442508,-500.0,0.00035616,2]
[314563463,1708427442518,-500.0,0.00035616,2]
[314563464,1708427442528,-563.12109155,0.00035616,2]
[314563465,1708427442538,-236.92076202,0.00035616,2]
[314563466,1708427442549,-689.62,0.00035616,2]
[314563467,1708427442559,-500.0,0.00035616,2]
[314563468,1708427442568,-500.0,0.00035616,2]
[314563469,1708427442578,-500.0,0.00035616,2]
[314563470,1708427442587,-500.0,0.00035616,2]
[314563471,1708427442597,-500.0,0.00035616,2]
[314563472,1708427442607,-500.0,0.00035616,2]
[314563473,1708427442616,-528.41022161,0.00035616,2]
[314563474,1708427442626,-526.71661694,0.00035616,2]
[314563475,1708427442636,-500.0,0.00035616,2]
[314563476,1708427442645,-500.0,0.00035616,2]
[314563477,1708427442655,-500.0,0.00035616,2]
[314563478,1708427442665,-500.0,0.00035616,2]
[314563479,1708427442675,-500.0,0.00035616,2]
[314563480,1708427442684,-500.0,0.00035616,2]
[314563481,1708427442694,-500.0,0.00035616,2]
[314563482,1708427442703,-500.0,0.00035616,2]
[314563483,1708427442714,-500.0,0.00035616,2]
[314563484,1708427442723,-500.0,0.00035616,2]
[314563486,1708427442733,-500.0,0.00035616,2]
[314563488,1708427442743,-500.0,0.00035616,2]
[314563490,1708427442752,-500.0,0.00035616,2]
[314563492,1708427442762,-500.0,0.00035616,2]
[314563494,1708427442771,-500.0,0.00035616,2]
[314563496,1708427442781,-500.0,0.00035616,2]
[314563498,1708427442790,-500.0,0.00035616,2]
[314563500,1708427442801,-500.0,0.00035616,2]
[314563502,1708427442811,-500.0,0.00035616,2]
[314563504,1708427442821,-500.0,0.00035616,2]
[314563505,1708427442830,-500.0,0.00035616,2]
[314563506,1708427442841,-500.0,0.00035616,2]
[314563507,1708427442850,-500.0,0.00035616,2]
[314563508,1708427442859,-505.49780228,0.00035616,2]
[314563509,1708427442869,-500.0,0.00035616,2]
[314563510,1708427442878,-500.0,0.00035616,2]
[314563511,1708427442888,-500.0,0.00035616,2]
[314563512,1708427442898,-528.52,0.00035616,2]
[314563513,1708427442908,-500.0,0.00035616,2]
[314563514,1708427442918,-500.0,0.00035616,2]
[314563515,1708427442928,-500.0,0.00035616,2]
[314563516,1708427442938,-500.0,0.00035616,2]
[314563517,1708427442948,-527.58336394,0.00035616,2]
[314563518,1708427442958,-500.0,0.00035616,2]
[314563519,1708427442967,-500.0,0.00035616,2]
[314563521,1708427442977,-500.0,0.00035616,2]
[314563522,1708427442986,-9514.02949424,0.00035616,3]
[314563523,1708427442996,-500.0,0.00035616,2]
[314563524,1708427443005,-500.0,0.00035616,2]
[314563525,1708427443015,-500.0,0.00035616,2]
[314563526,1708427443024,-500.0,0.00035616,2]
[314563527,1708427443033,-500.0,0.00035616,2]
[314563528,1708427443043,-500.0,0.00035616,2]
[314563529,1708427443054,-571.38,0.00035616,2]
[314563530,1708427443063,-304.38538098,0.00035616,2]
[314563531,1708427443072,-500.0,0.00035616,2]
[314563532,1708427443081,-512.80956793,0.00035616,2]
[314563533,1708427443091,-500.0,0.00035616,2]
[314563534,1708427443100,-528.39621914,0.00035616,2]
[314563535,1708427443109,-531.02464898,0.00035616,2]
[314563536,1708427443119,-500.0,0.00035616,2]
[314563537,1708427443128,-500.0,0.00035616,2]
[314563538,1708427443137,-500.0,0.00035616,2]
[314563539,1708427443146,-500.0,0.00035616,2]
[314563540,1708427443155,-500.0,0.00035616,2]
[314563541,1708427443165,-385.15857918,0.00035616,2]
[314563542,1708427443174,-500.0,0.00035616,2]
[314563543,1708427443183,-350.88062407,0.00035616,2]
[314563544,1708427443192,-500.0,0.00035616,2]
[314563545,1708427443202,-500.0,0.00035616,2]
[314563546,1708427443211,-500.0,0.00035616,2]
[314563547,1708427443220,-500.0,0.00035616,2]
[314563548,1708427443230,-500.0,0.00035616,2]
[314563549,1708427443239,-500.0,0.00035616,2]
[314563550,1708427443248,-500.0,0.00035616,2]
[314563551,1708427443258,-500.0,0.00035616,2]
[314563552,1708427443267,-500.0,0.00035616,2]
[314563553,1708427443276,-500.0,0.00035616,2]
[314563554,1708427443290,-500.0,0.00035616,2]
[314563555,1708427443299,-506.54452871,0.00035616,2]
[314563556,1708427443310,-500.0,0.00035616,2]
[314563557,1708427443320,-500.0,0.00035616,2]
[314563558,1708427443331,-500.0,0.00035616,2]
[314563559,1708427443340,-500.0,0.00035616,2]
[314563560,1708427443350,-500.0,0.00035616,2]
[314563561,1708427443359,-500.0,0.00035616,2]
[314563562,1708427443368,-500.0,0.00035616,2]
[314563563,1708427443378,-500.0,0.00035616,2]
[314563564,1708427443389,-500.0,0.00035616,2]
[314563565,1708427443399,-341.61531778,0.00035616,2]
[314563566,1708427443409,-676.64,0.00035616,2]
[314563567,1708427443418,-500.0,0.00035616,2]
[314563568,1708427443428,-500.0,0.00035616,2]
[314563569,1708427443438,-500.0,0.00035616,2]
[314563570,1708427443447,-546.05,0.00035616,2]
[314563571,1708427443457,-238.59428471,0.00035616,2]
[314563572,1708427443466,-500.0,0.00035616,2]
[314563573,1708427443475,-500.0,0.00035616,2]
[314563574,1708427443484,-500.0,0.00035616,2]
[314563575,1708427443494,-500.0,0.00035616,2]
[314563576,1708427443504,-553.09,0.00035616,2]
[314563577,1708427443513,-500.0,0.00035616,2]
[314563578,1708427443523,-172.30393202,0.00035616,2]
[314563579,1708427443532,-500.0,0.00035616,2]
[314563580,1708427443542,-500.0,0.00035616,2]
[314563581,1708427443553,-500.0,0.00035616,2]
[314563582,1708427443563,-500.0,0.00035616,2]
[314563583,1708427443572,-500.0,0.00035616,2]
[314563584,1708427443582,-535.74007746,0.00035616,2]
[314563585,1708427443591,-500.0,0.00035616,2]
[314563586,1708427443601,-500.0,0.00035616,2]
[314563587,1708427443610,-500.0,0.00035616,2]
[314563588,1708427443619,-500.0,0.00035616,2]
[314563589,1708427443629,-527.04044248,0.00035616,2]
[314563590,1708427443638,-500.0,0.00035616,2]
[314563591,1708427443648,-500.0,0.00035616,2]
[314563592,1708427443658,-500.0,0.00035616,2]
[314563593,1708427443667,-500.0,0.00035616,2]
[314563594,1708427443676,-500.0,0.00035616,2]
[314563595,1708427443686,-500.0,0.00035616,2]
[314563596,1708427443695,-500.0,0.00035616,2]
[314563597,1708427443704,-500.0,0.00035616,2]
[314563598,1708427443714,-500.0,0.00035616,2]
[314563599,1708427443723,-500.0,0.00035616,2]
[314563600,1708427443733,-500.0,0.00035616,2]
[314563601,1708427443742,-500.0,0.00035616,2]
[314563602,1708427443752,-500.0,0.00035616,2]
[314563603,1708427443761,-500.0,0.00035616,2]
[314563604,1708427443771,-500.0,0.00035616,2]
[314563605,1708427443780,-500.0,0.00035616,2]
[314563606,1708427443790,-500.0,0.00035616,2]
[314563607,1708427443801,-500.0,0.00035616,2]
[314563608,1708427443810,-500.0,0.00035616,2]
[314563609,1708427443820,-500.0,0.00035616,2]
[314563610,1708427443829,-500.0,0.00035616,2]
[314563611,1708427443839,-500.0,0.00035616,2]
[314563612,1708427443848,-500.0,0.00035616,2]
[314563613,1708427443857,-500.0,0.00035616,2]
[314563614,1708427443867,-500.0,0.00035616,2]
[314563615,1708427443877,-500.0,0.00035616,2]
[314563616,1708427443887,-500.0,0.00035616,2]
[314563617,1708427443897,-500.0,0.00035616,2]
[314563618,1708427443907,-500.0,0.00035616,2]
[314563619,1708427443917,-530.82,0.00035616,2]
[314563620,1708427443927,-500.0,0.00035616,2]
[314563621,1708427443936,-500.0,0.00035616,2]
[314563622,1708427443945,-500.0,0.00035616,2]
[314563623,1708427443956,-500.0,0.00035616,2]
[314563624,1708427443966,-546.51,0.00035616,2]
[314563625,1708427443975,-500.0,0.00035616,2]
[314563626,1708427443985,-500.0,0.00035616,2]
[314563627,1708427443994,-500.0,0.00035616,2]
[314563628,1708427444004,-500.0,0.00035616,2]
[314563629,1708427444013,-500.0,0.00035616,2]
[314563630,1708427444022,-500.0,0.00035616,2]
[314563631,1708427444031,-500.0,0.00035616,2]
[314563632,1708427444040,-500.0,0.00035616,2]
[314563633,1708427444050,-840.07,0.00035616,2]
[314563634,1708427444059,-500.0,0.00035616,2]
[314563635,1708427444069,-500.0,0.00035616,2]
[314563636,1708427444078,-500.0,0.00035616,2]
[314563637,1708427444087,-500.0,0.00035616,2]
[314563638,1708427444097,-500.0,0.00035616,2]
[314563639,1708427444106,-500.0,0.00035616,2]
[314563640,1708427444115,-500.0,0.00035616,2]
[314563641,1708427444124,-500.0,0.00035616,2]
[314563642,1708427444134,-500.0,0.00035616,2]
[314563643,1708427444143,-500.0,0.00035616,2]
[314563644,1708427444152,-500.0,0.00035616,2]
[314563645,1708427444162,-500.0,0.00035616,2]
[314563646,1708427444171,-500.0,0.00035616,2]
[314563647,1708427444180,-740.16486404,0.00035616,7]
[314563648,1708427444189,-500.0,0.00035616,2]
[314563649,1708427444198,-500.0,0.00035616,2]
[314563650,1708427444207,-171.69,0.00035616,2]
[314563651,1708427444217,-500.0,0.00035616,2]
[314563652,1708427444226,-500.0,0.00035616,2]
[314563653,1708427444236,-505.37754198,0.00035616,2]
[314563654,1708427444245,-373.40714081,0.00035616,2]
[314563655,1708427444255,-500.0,0.00035616,2]
[314563656,1708427444265,-500.0,0.00035616,2]
[314563657,1708427444274,-500.0,0.00035616,2]
[314563658,1708427444284,-468.74193769,0.00035616,2]
[314563659,1708427444293,-500.0,0.00035616,2]
[314563660,1708427444306,-500.0,0.00035616,2]
[314563661,1708427444315,-548.19508245,0.00035616,2]
[314563662,1708427444324,-500.0,0.00035616,2]
[314563663,1708427444334,-500.0,0.00035616,2]
[314563664,1708427444346,-500.0,0.00035616,2]
[314563665,1708427444355,-500.0,0.00035616,2]
[314563666,1708427444364,-500.0,0.00035616,2]
[314563667,1708427444374,-500.0,0.00035616,2]
[314563668,1708427444384,-500.0,0.00035616,2]
[314563669,1708427444393,-500.0,0.00035616,2]
[314563670,1708427444402,-500.0,0.00035616,2]
[314563671,1708427444411,-500.0,0.00035616,2]
[314563672,1708427444420,-500.0,0.00035616,2]
[314563673,1708427444429,-500.0,0.00035616,2]
[314563674,1708427444438,-500.0,0.00035616,2]
[314563675,1708427444447,-500.0,0.00035616,2]
[314563676,1708427444457,-500.0,0.00035616,2]
[314563677,1708427444466,-500.0,0.00035616,2]
[314563678,1708427444475,-500.0,0.00035616,2]
[314563679,1708427444484,-500.0,0.00035616,2]
[314563680,1708427444494,-500.0,0.00035616,2]
[314563681,1708427444503,-500.0,0.00035616,2]
[314563682,1708427444513,-500.0,0.00035616,2]
[314563683,1708427444522,-500.0,0.00035616,2]
[314563684,1708427444531,-195.60273181,0.00035616,2]
[314563685,1708427444541,-500.0,0.00035616,2]
[314563686,1708427444551,-500.0,0.00035616,2]
[314563687,1708427444561,-500.0,0.00035616,2]
[314563688,1708427444570,-500.0,0.00035616,2]
[314563689,1708427444580,-506.34,0.00035616,2]
[314563690,1708427444590,-500.0,0.00035616,2]
[314563691,1708427444599,-500.0,0.00035616,2]
[314563692,1708427444609,-666.0,0.00035616,2]
[314563693,1708427444618,-500.0,0.00035616,2]
[314563694,1708427444628,-500.0,0.00035616,2]
[314563695,1708427444691,-500.0,0.00035616,2]
[314563696,1708427444701,-619.29,0.00035616,2]
[314563697,1708427444711,-356.34647088,0.00035616,2]
[314563698,1708427444720,-500.0,0.00035616,2]
[314563699,1708427444730,-500.0,0.00035616,2]
[314563700,1708427444739,-500.0,0.00035616,2]
[314563701,1708427444749,-500.62,0.00035616,2]
[314563702,1708427444758,-500.0,0.00035616,2]
[314563703,1708427444769,-500.0,0.00035616,2]
[314563704,1708427444778,-500.0,0.00035616,2]
[314563705,1708427444788,-500.0,0.00035616,2]
[314563706,1708427444798,-301.07747036,0.00035616,2]
[314563707,1708427444807,-500.0,0.00035616,2]
[314563708,1708427444816,-500.0,0.00035616,2]
[314563709,1708427444825,-500.0,0.00035616,2]
[314563710,1708427444834,-500.0,0.00035616,2]
[314563711,1708427444843,-500.0,0.00035616,2]
[314563712,1708427444853,-500.0,0.00035616,2]
[314563713,1708427444862,-500.0,0.00035616,2]
[314563714,1708427444871,-708.46,0.00035616,2]
[314563715,1708427444880,-990.82,0.00035616,2]
[314563716,1708427444889,-500.0,0.00035616,2]
[314563717,1708427444898,-500.0,0.00035616,2]
[314563718,1708427444907,-500.0,0.00035616,2]
[314563719,1708427444916,-500.0,0.00035616,2]
[314563720,1708427444926,-500.0,0.00035616,2]
[314563721,1708427444935,-335.51440693,0.00035616,2]
[314563722,1708427444944,-500.0,0.00035616,2]
[314563723,1708427444953,-500.0,0.00035616,2]
[314563724,1708427444962,-500.0,0.00035616,2]
[314563725,1708427444971,-500.0,0.00035616,2]
[314563726,1708427444980,-500.0,0.00035616,2]
[314563727,1708427444988,-511.94,0.00035616,2]
[314563728,1708427444997,-500.0,0.00035616,2]
[314563729,1708427445006,-500.0,0.00035616,2]
[314563730,1708427445015,-530.9316903,0.00035616,2]
[314563731,1708427445024,-500.0,0.00035616,2]
[314563732,1708427445034,-500.0,0.00035616,2]
[314563733,1708427445043,-1742.44,0.00035616,2]
[314563734,1708427445053,-539.82,0.00035616,2]
[314563735,1708427445062,-500.0,0.00035616,2]
[314563736,1708427445071,-500.0,0.00035616,2]
[314563737,1708427445080,-500.0,0.00035616,2]
[314563738,1708427445089,-500.0,0.00035616,2]
[314563739,1708427445098,-532.04609794,0.00035616,2]
[314563740,1708427445107,-2183.12,0.00035616,2]
[314563741,1708427445116,-500.0,0.00035616,2]
[314563742,1708427445125,-500.0,0.00035616,2]
[314563743,1708427445134,-500.0,0.00035616,2]
[314563744,1708427445143,-500.0,0.00035616,2]
[314563745,1708427445153,-500.0,0.00035616,2]
[314563746,1708427445162,-500.0,0.00035616,2]
[314563747,1708427445172,-500.0,0.00035616,2]
[314563748,1708427445180,-500.0,0.00035616,2]
[314563749,1708427445190,-500.0,0.00035616,2]
[314563750,1708427445199,-1397.38,0.00035616,2]
[314563751,1708427445208,-500.0,0.00035616,2]
[314563752,1708427445218,-500.0,0.00035616,2]
[314563753,1708427445227,-2563.7,0.00035616,2]
[314563754,1708427445236,-500.0,0.00035616,2]
[314563755,1708427445246,-521.78,0.00035616,2]
[314563756,1708427445255,-500.0,0.00035616,2]